Workbook

Sheet LEAVE CALCULATION SHEET
A1: شركة المجموعة المشتركة للمقاولات (ش.م.ك.م )
A2: Combined Group Contracting Co. (K.S.C.C)
A5: LEAVE CALCULATION SHEET
A6: NAME: | B6: MUHAMMAD ASIF MUHAMMAD ASHRAF | C6: Employee No.: | F6: 91977
A7: DESIGNATION: | B7: LABOUR | C7: Joining Date: | F7: 2017-02-05
A9: Salary Details
A11: Basic | B11: 700
A12: Accomodation | B12: 0
A13: Bonus | B13: 0
A14: Food | B14: 0
A15: Total Salary | B15: =SUM(B11:G14) -> 700
A16: Working Days
A19: From | B19: =F7 -> 2017-02-05 | E19: 2019-08-30
A21: Days | B21: =+E19-B19+1 -> 937 | L21: 30 | M21: =B23*(30/365)-B26 -> 77.01369863
A22: Leave Without Pay | B22: 0 | L22: 12 | M22: =B23*(12/180)-B26 -> 62.46666667
A23: Net working days | B23: =B21-B22 -> 937 | L23: less | M23: He Don't Deserve Leave Salary
L24: desirve | M24: =IF(B23<365,M22,M21) -> 77.01369863
A25: Leave Balance Calculation
A26: Previouse Paid Leave (days) | B26: 0 | C26: Days
A28: Desirve Leaves ( Days) | B28: =IF(B23<=182,M23,M24) -> 77.01369863 | E28: Days | G28: New Leave Balance | I28: =B28-B35 -> 0.003698630137 | J28: Days
A30: Payment
A33: Required Days From employees | B33: 90
A35: Paid Days | B35: 77.01
A36: Unpaid days | B36: =B33-B35 -> 12.99
A38: Calculation | B38: =B15*B35/30 -> 1796.9 | C38: DHS
A41: Mohamed Sobhi | F41: Mohammed Al Hariri
A42: Admin Supervisor | F42: HR / Admin manager
E50: 36.78
E51: 3.85
E52: 55

Sheet END OF SERVICE
A1: شركة المجموعة المشتركة للمقاولات (ش.م.ك.م )
A2: Combined Group Contracting Co. (K.S.C.C)
A5: End of Service Benefits
A6: Name | B6: ='LEAVE CALCULATION SHEET'!B6 -> MUHAMMAD ASIF MUHAMMAD ASHRAF | E6: Emp # | F6: ='LEAVE CALCULATION SHEET'!F6:G6 -> 91977
A7: DESIGNATION JOINING DATE: | B7: ='LEAVE CALCULATION SHEET'!B7 -> LABOUR | E7: Joining Date | F7: ='LEAVE CALCULATION SHEET'!F7:G7 -> 2017-02-05
A9: Salary Details
A11: Basic | B11: ='LEAVE CALCULATION SHEET'!B11:G11 -> 700
A12: Accomodation | B12: 0
A13: Bonus
A14: Food | B14: 0
A15: Total Salary | B15: =SUM(B11:C14) -> 700
A16: Working Days
A19: From | B19: =F7 -> 2017-02-05 | E19: ='LEAVE CALCULATION SHEET'!E19 -> 2019-08-30
A21: Days | B21: =+E19-B19+1 -> 937
A22: Leave Without Pay | B22: ='LEAVE CALCULATION SHEET'!B22:G22 -> 0
A23: Paid Leave (days) | B23: ='LEAVE CALCULATION SHEET'!B28:D28 -> 77.01369863
A24: Net working days | B24: =B21-B22+B23 -> 1014.013699
A26: End of service calculation
A27: In Case of Resignation more than 5 years | E27: In Case of Resignation
A29: Net Working Days | B29: =B24-F29 -> 0 | C29: Days | E29: Net Working Days | F29: =B24 -> 1014.013699 | G29: Days
A30: Benefits Per Year | B30: 30 | C30: Days | E30: Benefits Per Year | F30: 7 | G30: Days
A31: Deserve Days | B31: =B29*B30/365 -> 0 | C31: Days | E31: Deserve Days | F31: =F29*F30/365 -> 19.44683806 | G31: Days
A32: Net Payment | B32: =B31*B11/30 -> 0 | C32: Dhs | E32: Net Payment | F32: =F31*B11/30 -> 453.7595546 | G32: Dhs
E34: TOTAL | F34: =F32+B32 -> 453.7595546
A35: Nedal Momani | F35: Mohammed Al Hariri
A36: Administrator | F36: HR / Admin manager

Sheet Leave Details
B2: COMBINED GROUP CONTRACTING CO. (K.S.C.) (ABU DHABI)
B4: Leave balance Details
A6: Employee No.: | B6: Name | C6: Disignation | D6: Joining Date: | E6: Date
A7: =VLOOKUP(A6,'LEAVE CALCULATION SHEET'!$C$6:$G$6,4,0) -> 91977 | B7: ='LEAVE CALCULATION SHEET'!B6 -> MUHAMMAD ASIF MUHAMMAD ASHRAF | C7: ='LEAVE CALCULATION SHEET'!B7 -> LABOUR | D7: =VLOOKUP(D6,'LEAVE CALCULATION SHEET'!$C$7:$G$7,4,0) -> 2017-02-05 | E7: =TODAY() -> 2019-08-03
A8: # | B8: First Day On Leave | C8: Duty Resumption | D8: PAID | E8: UNPAID | F8: The Actual Vacation
A9: 1 | E9: =F9-D9 -> 0 | F9: =C9-B9 -> 0
A10: 2 | E10: 0 | F10: =C10-B10 -> 0
A11: 3 | E11: 0 | F11: 0
A12: 4 | E12: 0 | F12: 0
A13: 5 | E13: 0 | F13: 0
A14: 6 | E14: 0 | F14: 0
A15: 7 | E15: 0 | F15: 0
A16: 8 | E16: 0 | F16: 0
A17: 9 | E17: 0 | F17: 0
A18: 10 | E18: 0 | F18: 0
A19: 11 | E19: 0 | F19: 0
A20: 12 | E20: 0 | F20: 0
A21: 13 | E21: 0 | F21: 0
A22: 14 | E22: 0 | F22: 0
A23: 15 | E23: 0 | F23: 0
A24: 16 | E24: 0 | F24: 0
A25: 17 | E25: 0 | F25: 0
A26: 18 | E26: 0 | F26: 0
A27: 19 | E27: 0 | F27: 0
A28: 20 | E28: 0 | F28: 0
A29: 21 | E29: 0 | F29: 0
A30: 22 | E30: 0 | F30: 0
A31: 23 | E31: 0 | F31: 0
A32: 24 | E32: 0 | F32: 0
A33: 25 | E33: 0 | F33: 0
A34: 26 | E34: 0 | F34: 0
A35: 27 | E35: 0 | F35: 0
A36: 28 | E36: 0 | F36: 0
A37: 29 | E37: 0 | F37: 0
A38: 30 | E38: 0 | F38: 0
C39: TOTAL | D39: =SUM(D9:D38) -> 0 | E39: =SUM(E9:E38) -> 0
A42: Mohamed Sobhi | C42: Mohammed Al Hariri
A43: Admin Supervisor | C43: HR / Admin manager
